[Event "Early-Titled-Tuesday-Blitz-April-02-2024"]
[Site "Chess.com"]
[Date "2024.04.02"]
[Round "11"]
[White "viktorskliarov"]
[Black "Predo63"]
[Result "1-0"]
[WhiteElo "2619"]
[BlackElo "2526"]
[TimeControl "180+1"]
[EndTime "10:07:09 PDT"]
[Termination "viktorskliarov won by resignation"]

1. e4 {[%clk 0:03:00.9]} 1... c6 {[%clk 0:02:59.9]} 2. d4 {[%clk 0:03:00.6]}
2... d5 {[%clk 0:03:00.2]} 3. e5 {[%clk 0:03:01]} 3... g6 {[%clk 0:03:00]} 4. h3
{[%clk 0:02:56.5]} 4... h5 {[%clk 0:02:59.7]} 5. Bd3 {[%clk 0:02:54.6]} 5... Na6
{[%clk 0:02:59.9]} 6. c3 {[%clk 0:02:52.6]} 6... Nc7 {[%clk 0:03:00]} 7. Ne2
{[%clk 0:02:51.7]} 7... h4 {[%clk 0:02:57.5]} 8. Qc2 {[%clk 0:02:45.6]} 8... Bh6
{[%clk 0:02:56.4]} 9. Nd2 {[%clk 0:02:43]} 9... Be6 {[%clk 0:02:53.3]} 10. O-O
{[%clk 0:02:19.8]} 10... Qd7 {[%clk 0:02:52.4]} 11. f4 {[%clk 0:02:19.9]} 11...
Bf5 {[%clk 0:02:52.4]} 12. Bxf5 {[%clk 0:02:15.4]} 12... Qxf5 {[%clk 0:02:52.1]}
13. Qxf5 {[%clk 0:02:15.5]} 13... gxf5 {[%clk 0:02:51.9]} 14. Nf3 {[%clk
0:02:15.8]} 14... Bf8 {[%clk 0:02:51]} 15. Be3 {[%clk 0:01:47.2]} 15... e6
{[%clk 0:02:50.9]} 16. Bf2 {[%clk 0:01:47.8]} 16... Be7 {[%clk 0:02:51.3]} 17.
Rfc1 {[%clk 0:01:41.7]} 17... Kd7 {[%clk 0:02:50.7]} 18. b3 {[%clk 0:01:37.4]}
18... a5 {[%clk 0:02:47.9]} 19. a4 {[%clk 0:01:33.9]} 19... Na6 {[%clk
0:02:40.3]} 20. Rc2 {[%clk 0:01:28.8]} 20... Bd8 {[%clk 0:02:33.1]} 21. Nc1
{[%clk 0:01:24.4]} 21... Be7 {[%clk 0:02:32.9]} 22. Nd3 {[%clk 0:01:24.2]} 22...
Bd8 {[%clk 0:02:25.2]} 23. c4 {[%clk 0:01:11.2]} 23... Nc7 {[%clk 0:02:12.2]}
24. Kf1 {[%clk 0:00:47.5]} 24... Kc8 {[%clk 0:02:10.4]} 25. Ke2 {[%clk
0:00:47.4]} 25... Ra6 {[%clk 0:02:07.1]} 26. Nc5 {[%clk 0:00:32.6]} 26... Ra7
{[%clk 0:02:05.8]} 27. Be1 {[%clk 0:00:32.8]} 27... Be7 {[%clk 0:02:03.1]} 28.
Nd3 {[%clk 0:00:32.7]} 28... Bd8 {[%clk 0:02:01.2]} 29. Rac1 {[%clk 0:00:31.9]}
29... Kd7 {[%clk 0:01:58.9]} 30. Nc5+ {[%clk 0:00:31.6]} 30... Kc8 {[%clk
0:01:58.7]} 31. Nd3 {[%clk 0:00:32]} 31... Kd7 {[%clk 0:01:57.8]} 32. Ra2 {[%clk
0:00:32.2]} 32... Be7 {[%clk 0:01:55.1]} 33. Nc5+ {[%clk 0:00:31.4]} 33... Kc8
{[%clk 0:01:51.8]} 34. Rb1 {[%clk 0:00:25.8]} 34... Bd8 {[%clk 0:01:49.9]} 35.
b4 {[%clk 0:00:23.5]} 35... axb4 {[%clk 0:01:49.7]} 36. a5 {[%clk 0:00:22.3]}
36... Na6 {[%clk 0:01:46.1]} 37. Nxa6 {[%clk 0:00:21.6]} 37... Rxa6 {[%clk
0:01:46.1]} 38. Bxb4 {[%clk 0:00:16.8]} 38... dxc4 {[%clk 0:01:43.6]} 39. Rab2
{[%clk 0:00:15.4]} 39... f6 {[%clk 0:01:35.8]} 40. Bd6 {[%clk 0:00:10.3]} 40...
Rh7 {[%clk 0:01:35.7]} 41. Nd2 {[%clk 0:00:10.6]} 41... fxe5 {[%clk 0:01:30.9]}
42. Nxc4 {[%clk 0:00:09.8]} 42... exd4 {[%clk 0:01:29.4]} 43. Kd3 {[%clk
0:00:09.7]} 43... Rd7 {[%clk 0:01:27.1]} 44. Be5 {[%clk 0:00:09.3]} 44... Be7
{[%clk 0:01:18]} 45. Nb6+ {[%clk 0:00:09.1]} 45... Rxb6 {[%clk 0:01:18.3]} 46.
Rxb6 {[%clk 0:00:09.4]} 46... Bd8 {[%clk 0:01:17.5]} 47. Rxc6+ {[%clk
0:00:09.9]} 47... Rc7 {[%clk 0:01:14.6]} 48. Rxc7+ {[%clk 0:00:09.7]} 48... Bxc7
{[%clk 0:01:14.7]} 49. Rc1 {[%clk 0:00:09.8]} 49... Kd8 {[%clk 0:01:13.8]} 50.
Rxc7 {[%clk 0:00:09.9]} 50... Ne7 {[%clk 0:01:14.4]} 51. Rxb7 {[%clk 0:00:10.3]}
51... Nc6 {[%clk 0:01:14.2]} 52. a6 {[%clk 0:00:10.8]} 52... Kc8 {[%clk
0:01:12.7]} 53. Rc7+ {[%clk 0:00:10.9]} 53... Kd8 {[%clk 0:01:13.1]} 54. Rxc6
{[%clk 0:00:11.4]} 1-0

[Event "Early-Titled-Tuesday-Blitz-April-02-2024"]
[Site "Chess.com"]
[Date "2024.04.02"]
[Round "11"]
[White "TitarovVasiliYouTube"]
[Black "SlavenPastar"]
[Result "0-1"]
[WhiteElo "2626"]
[BlackElo "2560"]
[TimeControl "180+1"]
[EndTime "10:07:13 PDT"]
[Termination "SlavenPastar won by resignation"]

1. g3 {[%clk 0:03:00.9]} 1... d5 {[%clk 0:02:58.5]} 2. Bg2 {[%clk 0:03:01.8]}
2... e5 {[%clk 0:02:58.7]} 3. d3 {[%clk 0:03:01]} 3... f5 {[%clk 0:02:56.9]} 4.
c4 {[%clk 0:03:00.6]} 4... c6 {[%clk 0:02:54.6]} 5. Nc3 {[%clk 0:03:00.3]} 5...
d4 {[%clk 0:02:54.4]} 6. Nb1 {[%clk 0:03:00.1]} 6... Nf6 {[%clk 0:02:55.1]} 7.
Bg5 {[%clk 0:02:59.3]} 7... h6 {[%clk 0:02:53.7]} 8. Bxf6 {[%clk 0:02:59.4]}
8... Qxf6 {[%clk 0:02:54.6]} 9. h4 {[%clk 0:02:58.3]} 9... g5 {[%clk 0:02:50.6]}
10. hxg5 {[%clk 0:02:58.1]} 10... hxg5 {[%clk 0:02:51.5]} 11. Rxh8 {[%clk
0:02:58.1]} 11... Qxh8 {[%clk 0:02:52.4]} 12. Nd2 {[%clk 0:02:56.8]} 12... Bb4
{[%clk 0:02:30.8]} 13. Kf1 {[%clk 0:02:55.5]} 13... Bxd2 {[%clk 0:02:08.9]} 14.
Qxd2 {[%clk 0:02:56.4]} 14... g4 {[%clk 0:02:05.2]} 15. Qg5 {[%clk 0:02:54.4]}
15... Be6 {[%clk 0:01:59.6]} 16. Qg6+ {[%clk 0:02:46.3]} 16... Ke7 {[%clk
0:01:53.4]} 17. Re1 {[%clk 0:02:35.4]} 17... Nd7 {[%clk 0:01:53.4]} 18. e3
{[%clk 0:02:34.1]} 18... Rg8 {[%clk 0:01:49.7]} 19. Qxg8 {[%clk 0:02:33.9]}
19... Qxg8 {[%clk 0:01:46.8]} 20. exd4 {[%clk 0:02:34.8]} 20... exd4 {[%clk
0:01:47.3]} 21. Ne2 {[%clk 0:02:35.7]} 21... Kd8 {[%clk 0:01:28.4]} 22. Nxd4
{[%clk 0:02:35.5]} 22... Nf8 {[%clk 0:01:28.7]} 23. Re5 {[%clk 0:02:25.5]} 23...
Kd7 {[%clk 0:01:19.6]} 24. Nxf5 {[%clk 0:02:18.7]} 24... Ng6 {[%clk 0:00:54.6]}
25. Ra5 {[%clk 0:02:17.7]} 25... Qd8 {[%clk 0:00:42.1]} 26. b4 {[%clk
0:02:17.3]} 26... Qf8 {[%clk 0:00:28.8]} 27. Be4 {[%clk 0:01:58.2]} 27... Qxb4
{[%clk 0:00:28.5]} 28. Rxa7 {[%clk 0:01:57.9]} 28... Ne5 {[%clk 0:00:23.8]} 29.
Nd4 {[%clk 0:01:55.9]} 29... Qb1+ {[%clk 0:00:20.4]} 30. Kg2 {[%clk 0:01:56.2]}
30... Nxd3 {[%clk 0:00:19.3]} 31. Bxc6+ {[%clk 0:01:35.3]} 31... Kd6 {[%clk
0:00:19.1]} 32. Rxb7 {[%clk 0:01:34.6]} 32... Ne1+ {[%clk 0:00:15.6]} 33. Kf1
{[%clk 0:01:33.3]} 33... Qd1 {[%clk 0:00:14.2]} 34. Ba4 {[%clk 0:01:22]} 34...
Qxd4 {[%clk 0:00:11.1]} 35. Kxe1 {[%clk 0:01:19.6]} 35... Ke5 {[%clk 0:00:10.6]}
36. Rb5+ {[%clk 0:01:14.7]} 36... Kf6 {[%clk 0:00:10.1]} 37. Bb3 {[%clk
0:01:13.4]} 37... Qe4+ {[%clk 0:00:09.3]} 38. Kd2 {[%clk 0:01:10.8]} 38... Qd4+
{[%clk 0:00:09.3]} 39. Ke1 {[%clk 0:01:09.6]} 39... Bxc4 {[%clk 0:00:07.7]} 40.
Bxc4 {[%clk 0:01:07.1]} 40... Qxc4 {[%clk 0:00:06.4]} 41. Rb2 {[%clk 0:01:00.9]}
41... Qc1+ {[%clk 0:00:06.1]} 42. Ke2 {[%clk 0:01:01.5]} 42... Qxb2+ {[%clk
0:00:06]} 0-1

[Event "Early-Titled-Tuesday-Blitz-April-02-2024"]
[Site "Chess.com"]
[Date "2024.04.02"]
[Round "11"]
[White "Bilan_Danila"]
[Black "KNVB"]
[Result "0-1"]
[WhiteElo "2592"]
[BlackElo "2780"]
[TimeControl "180+1"]
[EndTime "10:07:25 PDT"]
[Termination "KNVB won by resignation"]

1. d4 {[%clk 0:03:00.9]} 1... e5 {[%clk 0:02:59.8]} 2. dxe5 {[%clk 0:02:56.3]}
2... Nc6 {[%clk 0:03:00.1]} 3. Nf3 {[%clk 0:02:56.6]} 3... Qe7 {[%clk
0:03:00.4]} 4. g3 {[%clk 0:02:48.1]} 4... Nxe5 {[%clk 0:02:59.8]} 5. Nxe5 {[%clk
0:02:49]} 5... Qxe5 {[%clk 0:03:00.7]} 6. Bg2 {[%clk 0:02:46.7]} 6... Bc5 {[%clk
0:03:00.8]} 7. O-O {[%clk 0:02:46.8]} 7... Nf6 {[%clk 0:03:00.8]} 8. Nc3 {[%clk
0:02:45.3]} 8... d6 {[%clk 0:03:00.1]} 9. Bf4 {[%clk 0:02:37.7]} 9... Qh5 {[%clk
0:03:00]} 10. e4 {[%clk 0:02:28.3]} 10... Bg4 {[%clk 0:02:59.9]} 11. Qd3 {[%clk
0:02:11.7]} 11... O-O {[%clk 0:03:00.1]} 12. Kh1 {[%clk 0:02:07.4]} 12... a6
{[%clk 0:02:32]} 13. f3 {[%clk 0:01:58.4]} 13... Bh3 {[%clk 0:02:31.5]} 14. Nd5
{[%clk 0:01:36.1]} 14... Nxd5 {[%clk 0:02:24]} 15. Qxd5 {[%clk 0:01:32.8]} 15...
Qxd5 {[%clk 0:02:09.1]} 16. exd5 {[%clk 0:01:32.6]} 16... Bf5 {[%clk 0:02:10]}
17. c3 {[%clk 0:01:19.2]} 17... Bd3 {[%clk 0:01:56.3]} 18. Rfd1 {[%clk
0:01:07.9]} 18... Be2 {[%clk 0:01:54.4]} 19. Rd2 {[%clk 0:00:48.7]} 19... Rfe8
{[%clk 0:01:54]} 20. h4 {[%clk 0:00:39.8]} 20... h6 {[%clk 0:01:28]} 21. g4
{[%clk 0:00:27.7]} 21... Bf2 {[%clk 0:01:15.7]} 22. h5 {[%clk 0:00:26.1]} 22...
Kf8 {[%clk 0:01:10.7]} 23. Kh2 {[%clk 0:00:23.6]} 23... a5 {[%clk 0:01:07.8]}
24. Bg3 {[%clk 0:00:17.3]} 24... Bc5 {[%clk 0:00:29.9]} 25. Re1 {[%clk 0:00:12]}
25... Bc4 {[%clk 0:00:30.4]} 26. f4 {[%clk 0:00:11.3]} 26... Rxe1 {[%clk
0:00:27.4]} 27. Bxe1 {[%clk 0:00:12.2]} 27... Be3 {[%clk 0:00:28.1]} 28. Rc2
{[%clk 0:00:08.3]} 28... Bd3 {[%clk 0:00:25.7]} 29. Rd2 {[%clk 0:00:03.6]} 29...
Bxf4+ {[%clk 0:00:25.1]} 30. Kh3 {[%clk 0:00:03.5]} 30... Bxd2 {[%clk
0:00:20.6]} 31. Bxd2 {[%clk 0:00:04.4]} 31... Re8 {[%clk 0:00:18.7]} 32. Bf3
{[%clk 0:00:04.9]} 32... Be4 {[%clk 0:00:19]} 33. Bd1 {[%clk 0:00:04.9]} 33...
Bxd5 {[%clk 0:00:19.3]} 34. Kg3 {[%clk 0:00:03.4]} 34... Bxa2 {[%clk 0:00:16]}
0-1

[Event "Early-Titled-Tuesday-Blitz-April-02-2024"]
[Site "Chess.com"]
[Date "2024.04.02"]
[Round "11"]
[White "KuzubovYuriy"]
[Black "Mops_2004"]
[Result "1-0"]
[WhiteElo "2918"]
[BlackElo "2784"]
[TimeControl "180+1"]
[EndTime "10:07:29 PDT"]
[Termination "KuzubovYuriy won by resignation"]

1. d4 {[%clk 0:02:56.5]} 1... g6 {[%clk 0:03:00.2]} 2. e4 {[%clk 0:02:55.4]}
2... Bg7 {[%clk 0:03:00.5]} 3. Nf3 {[%clk 0:02:55.6]} 3... d6 {[%clk 0:03:00.8]}
4. Bd3 {[%clk 0:02:55.4]} 4... Nc6 {[%clk 0:02:59.8]} 5. c3 {[%clk 0:02:54.6]}
5... e5 {[%clk 0:02:59.3]} 6. dxe5 {[%clk 0:02:54.5]} 6... Nxe5 {[%clk
0:02:59.5]} 7. Nxe5 {[%clk 0:02:54.1]} 7... dxe5 {[%clk 0:02:59.8]} 8. O-O
{[%clk 0:02:50.5]} 8... Nf6 {[%clk 0:02:59.7]} 9. Bg5 {[%clk 0:02:48.5]} 9... h6
{[%clk 0:02:56.2]} 10. Bh4 {[%clk 0:02:47.9]} 10... O-O {[%clk 0:02:55.3]} 11.
Qe2 {[%clk 0:02:48]} 11... Qe8 {[%clk 0:02:48.3]} 12. Bb5 {[%clk 0:02:43.3]}
12... c6 {[%clk 0:02:45.7]} 13. Ba4 {[%clk 0:02:43.5]} 13... Nh5 {[%clk
0:02:44.3]} 14. Rd1 {[%clk 0:02:40.1]} 14... Bf6 {[%clk 0:02:24.1]} 15. Bxf6
{[%clk 0:02:35.5]} 15... Nxf6 {[%clk 0:02:25]} 16. Nd2 {[%clk 0:02:35.7]} 16...
Bg4 {[%clk 0:02:15.2]} 17. f3 {[%clk 0:02:33.4]} 17... Be6 {[%clk 0:02:14.9]}
18. Bb3 {[%clk 0:02:33.3]} 18... Kg7 {[%clk 0:02:05.9]} 19. a4 {[%clk
0:02:19.8]} 19... Rd8 {[%clk 0:01:57.2]} 20. Bxe6 {[%clk 0:02:09.5]} 20... Qxe6
{[%clk 0:01:57.2]} 21. Nc4 {[%clk 0:02:09.7]} 21... b5 {[%clk 0:01:47.4]} 22.
Ne3 {[%clk 0:01:55.6]} 22... a6 {[%clk 0:01:20.5]} 23. axb5 {[%clk 0:01:53.6]}
23... Rxd1+ {[%clk 0:01:12.6]} 24. Rxd1 {[%clk 0:01:52.7]} 24... cxb5 {[%clk
0:01:04]} 25. Qd2 {[%clk 0:01:42]} 25... Qb6 {[%clk 0:00:51.4]} 26. Kf2 {[%clk
0:01:41.8]} 26... Re8 {[%clk 0:00:44.5]} 27. Qd6 {[%clk 0:01:37.5]} 27... Re6
{[%clk 0:00:34.3]} 28. Qxb6 {[%clk 0:01:37.7]} 28... Rxb6 {[%clk 0:00:35.2]} 29.
Rd8 {[%clk 0:01:38]} 29... a5 {[%clk 0:00:29]} 30. Ra8 {[%clk 0:01:33.5]} 30...
a4 {[%clk 0:00:28.6]} 31. Ke2 {[%clk 0:01:23.2]} 31... h5 {[%clk 0:00:27.5]} 32.
h4 {[%clk 0:01:21.2]} 32... Nd7 {[%clk 0:00:21.3]} 33. Nd5 {[%clk 0:01:19.2]}
33... Rb7 {[%clk 0:00:21.3]} 34. Re8 {[%clk 0:01:03.4]} 34... Ra7 {[%clk
0:00:03.7]} 35. Re7 {[%clk 0:00:59.6]} 35... Kf8 {[%clk 0:00:03.5]} 36. g4
{[%clk 0:00:54.2]} 36... Rb7 {[%clk 0:00:03.1]} 37. g5 {[%clk 0:00:51.9]} 37...
Ra7 {[%clk 0:00:03]} 38. Ke3 {[%clk 0:00:51.5]} 38... Rb7 {[%clk 0:00:03.3]} 39.
f4 {[%clk 0:00:51.5]} 39... exf4+ {[%clk 0:00:03.6]} 40. Kxf4 {[%clk 0:00:50.9]}
40... Ra7 {[%clk 0:00:04]} 41. e5 {[%clk 0:00:49.4]} 41... Rb7 {[%clk
0:00:03.3]} 42. e6 {[%clk 0:00:47.5]} 42... fxe6 {[%clk 0:00:03.7]} 43. Rxe6
{[%clk 0:00:47.6]} 43... Kf7 {[%clk 0:00:04.3]} 44. Re7+ {[%clk 0:00:47.6]}
44... Kf8 {[%clk 0:00:04.9]} 45. Rh7 {[%clk 0:00:45]} 45... Ra7 {[%clk
0:00:01.8]} 46. Nf6 {[%clk 0:00:41.6]} 1-0

[Event "Early-Titled-Tuesday-Blitz-April-02-2024"]
[Site "Chess.com"]
[Date "2024.04.02"]
[Round "11"]
[White "JosefineHeinemann"]
[Black "JimDiGrease"]
[Result "0-1"]
[WhiteElo "2543"]
[BlackElo "2944"]
[TimeControl "180+1"]
[EndTime "10:07:29 PDT"]
[Termination "JimDiGrease won by resignation"]

1. e4 {[%clk 0:03:00.5]} 1... c5 {[%clk 0:03:00]} 2. Nf3 {[%clk 0:02:56.4]} 2...
e6 {[%clk 0:03:00.5]} 3. d4 {[%clk 0:02:53.7]} 3... cxd4 {[%clk 0:03:00.7]} 4.
Nxd4 {[%clk 0:02:54.6]} 4... Nf6 {[%clk 0:03:01.1]} 5. Nc3 {[%clk 0:02:54.1]}
5... Nc6 {[%clk 0:03:01.2]} 6. Nxc6 {[%clk 0:02:52.8]} 6... bxc6 {[%clk
0:03:02.1]} 7. e5 {[%clk 0:02:52.7]} 7... Nd5 {[%clk 0:03:02.2]} 8. Ne4 {[%clk
0:02:52.8]} 8... Qc7 {[%clk 0:03:02.7]} 9. f4 {[%clk 0:02:51.7]} 9... Rb8 {[%clk
0:03:03.2]} 10. a3 {[%clk 0:02:44.2]} 10... Qb6 {[%clk 0:03:01.6]} 11. c4 {[%clk
0:02:39.8]} 11... Ne3 {[%clk 0:02:54]} 12. Qd3 {[%clk 0:02:37.6]} 12... Nf5
{[%clk 0:02:53.2]} 13. b4 {[%clk 0:02:27.3]} 13... Ba6 {[%clk 0:02:32.3]} 14.
Be2 {[%clk 0:01:51.3]} 14... Be7 {[%clk 0:02:15.6]} 15. g4 {[%clk 0:01:01.2]}
15... Nd4 {[%clk 0:02:12.9]} 16. Be3 {[%clk 0:00:48.6]} 16... Nc2+ {[%clk
0:02:04]} 17. Kf2 {[%clk 0:00:48.4]} 17... Nxe3 {[%clk 0:01:59.4]} 18. Qxe3
{[%clk 0:00:49.3]} 18... Qc7 {[%clk 0:01:57.2]} 19. Rhd1 {[%clk 0:00:41.5]}
19... O-O {[%clk 0:01:55.7]} 20. Ra2 {[%clk 0:00:24.5]} 20... f5 {[%clk
0:01:46.4]} 21. exf6 {[%clk 0:00:23.3]} 21... Bxf6 {[%clk 0:01:42.6]} 22. Kg2
{[%clk 0:00:17]} 22... Be7 {[%clk 0:01:35.8]} 23. Rf1 {[%clk 0:00:13.6]} 23...
d5 {[%clk 0:01:33.2]} 24. cxd5 {[%clk 0:00:12.6]} 24... Bxe2 {[%clk 0:01:34.1]}
25. Rxe2 {[%clk 0:00:11.8]} 25... exd5 {[%clk 0:01:26.4]} 26. Ng3 {[%clk
0:00:12]} 26... Bd6 {[%clk 0:01:26.9]} 27. Nf5 {[%clk 0:00:11.8]} 27... Rf6
{[%clk 0:01:20.3]} 28. Nxd6 {[%clk 0:00:10.2]} 28... Qxd6 {[%clk 0:01:20.9]} 29.
g5 {[%clk 0:00:10.1]} 29... Rf7 {[%clk 0:01:17.7]} 30. h4 {[%clk 0:00:09]} 30...
Rbf8 {[%clk 0:01:16.6]} 31. Ref2 {[%clk 0:00:08.4]} 31... g6 {[%clk 0:01:15.2]}
32. Qd4 {[%clk 0:00:08.1]} 32... Re8 {[%clk 0:01:13.5]} 33. h5 {[%clk
0:00:06.7]} 33... Re4 {[%clk 0:01:12.6]} 34. Qd2 {[%clk 0:00:06]} 34... Qe6
{[%clk 0:01:09.4]} 35. hxg6 {[%clk 0:00:06.1]} 35... Qg4+ {[%clk 0:01:08.2]} 36.
Kh1 {[%clk 0:00:06.5]} 36... hxg6 {[%clk 0:01:09]} 37. Rg2 {[%clk 0:00:06.5]}
37... Qh3+ {[%clk 0:00:57.4]} 38. Kg1 {[%clk 0:00:05.4]} 38... Rh7 {[%clk
0:00:55.7]} 39. Qc2 {[%clk 0:00:03.3]} 39... Qe3+ {[%clk 0:00:50.9]} 40. Qf2
{[%clk 0:00:02.3]} 40... Qh3 {[%clk 0:00:45.7]} 41. Qd2 {[%clk 0:00:02]} 41...
Rhe7 {[%clk 0:00:43.4]} 42. f5 {[%clk 0:00:01.5]} 42... gxf5 {[%clk 0:00:42]}
43. Rxf5 {[%clk 0:00:02.2]} 43... Qxf5 {[%clk 0:00:41.7]} 44. g6 {[%clk
0:00:01.6]} 44... Re1+ {[%clk 0:00:41.3]} 0-1

[Event "Early-Titled-Tuesday-Blitz-April-02-2024"]
[Site "Chess.com"]
[Date "2024.04.02"]
[Round "11"]
[White "JaackCamel"]
[Black "IsmaelAmadorGarcia"]
[Result "0-1"]
[WhiteElo "2194"]
[BlackElo "2320"]
[TimeControl "180+1"]
[EndTime "10:07:29 PDT"]
[Termination "IsmaelAmadorGarcia won by checkmate"]

1. d4 {[%clk 0:02:55.1]} 1... Nf6 {[%clk 0:02:59.3]} 2. c4 {[%clk 0:02:53.9]}
2... g6 {[%clk 0:02:59.1]} 3. Nc3 {[%clk 0:02:51.4]} 3... Bg7 {[%clk 0:02:58.9]}
4. e4 {[%clk 0:02:50.8]} 4... O-O {[%clk 0:02:58.4]} 5. Nf3 {[%clk 0:02:49.6]}
5... d6 {[%clk 0:02:58.7]} 6. Be2 {[%clk 0:02:49]} 6... Na6 {[%clk 0:02:58.7]}
7. Be3 {[%clk 0:02:47]} 7... e5 {[%clk 0:02:59]} 8. d5 {[%clk 0:02:44]} 8... c5
{[%clk 0:02:46.5]} 9. h3 {[%clk 0:02:41]} 9... Nc7 {[%clk 0:02:42.5]} 10. g4
{[%clk 0:02:39]} 10... Nfe8 {[%clk 0:02:41.1]} 11. Nd2 {[%clk 0:02:35.3]} 11...
a6 {[%clk 0:02:29.8]} 12. a4 {[%clk 0:02:32.1]} 12... a5 {[%clk 0:02:22.9]} 13.
Nb5 {[%clk 0:02:11.4]} 13... Na6 {[%clk 0:02:21.1]} 14. Nb1 {[%clk 0:01:41.6]}
14... Nb4 {[%clk 0:02:20.8]} 15. N1c3 {[%clk 0:01:41.2]} 15... b6 {[%clk
0:02:18.9]} 16. h4 {[%clk 0:01:38.3]} 16... f5 {[%clk 0:02:05.2]} 17. gxf5
{[%clk 0:01:37.5]} 17... gxf5 {[%clk 0:02:05.1]} 18. exf5 {[%clk 0:01:37.2]}
18... Bxf5 {[%clk 0:02:04.1]} 19. Rc1 {[%clk 0:01:33.6]} 19... Nf6 {[%clk
0:01:47.4]} 20. Rg1 {[%clk 0:01:29.4]} 20... Kh8 {[%clk 0:01:46.5]} 21. Bg5
{[%clk 0:01:17.6]} 21... Qd7 {[%clk 0:01:44.7]} 22. f3 {[%clk 0:01:05.2]} 22...
Nh5 {[%clk 0:01:38.9]} 23. Qd2 {[%clk 0:01:02.6]} 23... Nf4 {[%clk 0:01:36.7]}
24. Ne4 {[%clk 0:00:58.7]} 24... Nh3 {[%clk 0:01:20.3]} 25. Rg3 {[%clk
0:00:50.9]} 25... Bxe4 {[%clk 0:01:19.5]} 26. fxe4 {[%clk 0:00:47]} 26... Nf2
{[%clk 0:01:10.1]} 27. Qe3 {[%clk 0:00:39.2]} 27... Rf7 {[%clk 0:00:53.3]} 28.
Kd2 {[%clk 0:00:38.3]} 28... Raf8 {[%clk 0:00:50.3]} 29. Rcg1 {[%clk 0:00:37.6]}
29... Rf4 {[%clk 0:00:26.7]} 30. Bxf4 {[%clk 0:00:17.5]} 30... exf4 {[%clk
0:00:26.6]} 31. Qxf2 {[%clk 0:00:17.8]} 31... fxg3 {[%clk 0:00:23.5]} 32. Qxg3
{[%clk 0:00:16.6]} 32... Bxb2 {[%clk 0:00:13.7]} 33. Nc3 {[%clk 0:00:13.5]}
33... Qf7 {[%clk 0:00:10.6]} 34. Rg2 {[%clk 0:00:12.5]} 34... Qf6 {[%clk
0:00:09.9]} 35. Nd1 {[%clk 0:00:11.7]} 35... Qd4+ {[%clk 0:00:08.2]} 36. Ke1
{[%clk 0:00:10.7]} 36... Nc2# {[%clk 0:00:07.7]} 0-1

[Event "Early-Titled-Tuesday-Blitz-April-02-2024"]
[Site "Chess.com"]
[Date "2024.04.02"]
[Round "11"]
[White "GlavkonVVS"]
[Black "NowInChess"]
[Result "1-0"]
[WhiteElo "2615"]
[BlackElo "2250"]
[TimeControl "180+1"]
[EndTime "10:07:30 PDT"]
[Termination "GlavkonVVS won on time"]

1. c4 {[%clk 0:03:00.9]} 1... e5 {[%clk 0:02:59.5]} 2. Nc3 {[%clk 0:03:01]} 2...
Nf6 {[%clk 0:02:59.3]} 3. g3 {[%clk 0:03:01.4]} 3... g6 {[%clk 0:02:57.2]} 4.
Bg2 {[%clk 0:03:01.5]} 4... Bg7 {[%clk 0:02:57.8]} 5. Nf3 {[%clk 0:03:01.9]}
5... Nc6 {[%clk 0:02:55.7]} 6. d3 {[%clk 0:02:58.7]} 6... O-O {[%clk 0:02:54.5]}
7. Rb1 {[%clk 0:02:59.1]} 7... a5 {[%clk 0:02:53.6]} 8. a3 {[%clk 0:02:59]} 8...
d6 {[%clk 0:02:53.7]} 9. b4 {[%clk 0:02:58.2]} 9... axb4 {[%clk 0:02:54.3]} 10.
axb4 {[%clk 0:02:58.6]} 10... Nh5 {[%clk 0:02:54.7]} 11. b5 {[%clk 0:02:55.4]}
11... Ne7 {[%clk 0:02:54.3]} 12. O-O {[%clk 0:02:50.8]} 12... f5 {[%clk
0:02:53.8]} 13. c5 {[%clk 0:02:40]} 13... e4 {[%clk 0:02:49]} 14. dxe4 {[%clk
0:02:39.1]} 14... Bxc3 {[%clk 0:02:48.1]} 15. Qb3+ {[%clk 0:02:39]} 15... d5
{[%clk 0:02:37.3]} 16. Qxc3 {[%clk 0:02:25.7]} 16... fxe4 {[%clk 0:02:19.2]} 17.
Bb2 {[%clk 0:02:05]} 17... exf3 {[%clk 0:01:51]} 18. Qh8+ {[%clk 0:02:04]} 18...
Kf7 {[%clk 0:01:51.4]} 19. Qxh7+ {[%clk 0:02:04.5]} 19... Ke8 {[%clk 0:01:46.4]}
20. exf3 {[%clk 0:02:03.7]} 20... Nf6 {[%clk 0:01:07]} 21. Qh6 {[%clk
0:01:57.8]} 21... Ra2 {[%clk 0:01:02.2]} 22. Rfe1 {[%clk 0:01:52.1]} 22... Kf7
{[%clk 0:00:45.5]} 23. Qf4 {[%clk 0:01:35.4]} 23... Bf5 {[%clk 0:00:40.6]} 24.
Qd4 {[%clk 0:01:04.1]} 24... Rxb2 {[%clk 0:00:28.2]} 25. Rxb2 {[%clk 0:01:03]}
25... c6 {[%clk 0:00:26.7]} 26. g4 {[%clk 0:01:01.7]} 26... Bd7 {[%clk
0:00:18.5]} 27. Rbe2 {[%clk 0:01:00.5]} 27... Neg8 {[%clk 0:00:13.9]} 28. g5
{[%clk 0:00:51.8]} 28... Nh5 {[%clk 0:00:08.7]} 29. f4 {[%clk 0:00:48.4]} 29...
Bf5 {[%clk 0:00:07.2]} 30. Re5 {[%clk 0:00:41.7]} 30... Qc7 {[%clk 0:00:06.3]}
31. Rxd5 {[%clk 0:00:33.9]} 31... Qc8 {[%clk 0:00:02.3]} 32. bxc6 {[%clk
0:00:32.1]} 32... bxc6 {[%clk 0:00:01.8]} 33. Rd6 {[%clk 0:00:31.5]} 33... Ne7
{[%clk 0:00:01.9]} 34. Rf6+ {[%clk 0:00:26.1]} 34... Kg8 {[%clk 0:00:01.6]} 35.
Rxe7 {[%clk 0:00:24.7]} 35... Qd8 {[%clk 0:00:01.7]} 36. Rxf8+ {[%clk
0:00:23.5]} 36... Qxf8 {[%clk 0:00:01.3]} 37. Qe5 {[%clk 0:00:23.7]} 1-0